[Event "Titled Tuesday Blitz May 24 Early 2022"]
[White "Nilsen, Tobias Lang"]
[Black "Cardoso Cardoso, Jose Gabriel"]
[WhiteFideId "1521624"]
[BlackFideId "4430492"]
[WhiteElo "2014"]
[BlackElo "2485"]
[Result "0-1"]
[Round "01"]
[TimeControl "180+1"]
[Date "2022.05.25"]
[WhiteClock "0:00:18"]
[BlackClock "0:00:47"]

1. f4 {[%clk 0:03:00]}  f5 {[%clk 0:02:43]} 2. Nf3 {[%clk 0:02:57]}  Nf6 {[%clk 0:02:42]} 3. g3 {[%clk 0:02:58]}  g6 {[%clk 0:02:41]} 4. Bg2 {[%clk 0:02:59]}  Bg7 {[%clk 0:02:41]} 5. O-O {[%clk 0:02:59]}  O-O {[%clk 0:02:41]} 6. d3 {[%clk 0:03:00]}  d6 {[%clk 0:02:38]} 7. Nc3 {[%clk 0:03:01]}  Nc6 {[%clk 0:02:36]} 8. e4 {[%clk 0:03:00]}  e5 {[%clk 0:02:35]} 9. fxe5 {[%clk 0:02:59]}  dxe5 {[%clk 0:02:34]} 10. Nh4 {[%clk 0:02:57]}  f4 {[%clk 0:02:28]} 11. gxf4 {[%clk 0:02:33]}  Ng4 {[%clk 0:02:27]} 12. Nf3 {[%clk 0:02:24]}  exf4 {[%clk 0:02:25]} 13. Nd5 {[%clk 0:02:24]}  Nd4 {[%clk 0:02:19]} 14. c3 {[%clk 0:02:20]}  Ne6 {[%clk 0:02:17]} 15. Qb3 {[%clk 0:02:08]}  Kh8 {[%clk 0:02:14]} 16. h3 {[%clk 0:01:57]}  Nh6 {[%clk 0:01:52]} 17. Nh2 {[%clk 0:01:13]}  g5 {[%clk 0:01:50]} 18. h4 {[%clk 0:01:09]}  c6 {[%clk 0:01:47]} 19. hxg5 {[%clk 0:01:08]}  Qxg5 {[%clk 0:01:46]} 20. Nf3 {[%clk 0:00:48]}  Qg3 {[%clk 0:01:44]} 21. Ne7 {[%clk 0:00:45]}  Nc5 {[%clk 0:01:31]} 22. Qc2 {[%clk 0:00:42]}  Bh3 {[%clk 0:01:27]} 23. Kh1 {[%clk 0:00:14]}  Nxd3 {[%clk 0:01:19]} 24. Bxh3 {[%clk 0:00:11]}  Qxh3+ {[%clk 0:01:18]} 25. Kg1 {[%clk 0:00:10]}  Ne5 {[%clk 0:01:15]} 26. Ng5 {[%clk 0:00:08]}  Qg4+ {[%clk 0:01:09]} 27. Qg2 {[%clk 0:00:08]}  Bf6 {[%clk 0:01:06]} 28. Qxg4 {[%clk 0:00:04]}  Nexg4 {[%clk 0:01:06]} 29. Ne6 {[%clk 0:00:03]}  Bxe7 {[%clk 0:01:05]} 30. Nxf8 {[%clk 0:00:04]}  Rxf8 {[%clk 0:01:04]} 31. Rxf4 {[%clk 0:00:04]}  Rg8 {[%clk 0:01:03]} 32. Kf1 {[%clk 0:00:04]}  Bc5 {[%clk 0:01:02]} 33. Bd2 {[%clk 0:00:02]}  Ne5 {[%clk 0:01:00]} 34. Ke2 {[%clk 0:00:02]}  Rg2+ {[%clk 0:01:00]} 35. Kd1 {[%clk 0:00:03]}  Rg1+ {[%clk 0:00:58]} 36. Be1 {[%clk 0:00:03]}  Rxe1+ {[%clk 0:00:57]} 37. Kxe1 {[%clk 0:00:02]}  Nd3+ {[%clk 0:00:58]} 38. Ke2 {[%clk 0:00:03]}  Nxf4+ {[%clk 0:00:58]} 39. Kf3 {[%clk 0:00:03]}  Ng6 {[%clk 0:00:58]} 40. b4 {[%clk 0:00:04]}  Be7 {[%clk 0:00:56]} 41. a4 {[%clk 0:00:04]}  Ne5+ {[%clk 0:00:56]} 42. Ke2 {[%clk 0:00:04]}  Kg7 {[%clk 0:00:55]} 43. a5 {[%clk 0:00:03]}  a6 {[%clk 0:00:51]} 44. Rd1 {[%clk 0:00:03]}  Nhg4 {[%clk 0:00:50]} 45. Rf1 {[%clk 0:00:01]}  h5 {[%clk 0:00:49]} 46. Rh1 {[%clk 0:00:01]}  h4 {[%clk 0:00:49]} 47. Rxh4 {[%clk 0:00:01]}  Bxh4 {[%clk 0:00:48]} 48. Kd2 {[%clk 0:00:02]}  Bg5+ {[%clk 0:00:48]} 49. Kc2 {[%clk 0:00:02]}  Nf2 {[%clk 0:00:47]} 50. Kb3 {[%clk 0:00:03]}  Nxe4 {[%clk 0:00:48]} 51. Ka4 {[%clk 0:00:04]}  Nxc3+ {[%clk 0:00:47]} 52. Kb3 {[%clk 0:00:05]}  Nb5 {[%clk 0:00:48]} 53. Ka4 {[%clk 0:00:05]}  Kf6 {[%clk 0:00:48]} 54. Kb3 {[%clk 0:00:06]}  Ke6 {[%clk 0:00:48]} 55. Ka4 {[%clk 0:00:07]}  Kd5 {[%clk 0:00:48]} 56. Kb3 {[%clk 0:00:08]}  Nd3 {[%clk 0:00:47]} 57. Ka4 {[%clk 0:00:08]}  Nxb4 {[%clk 0:00:46]} 58. Kxb4 {[%clk 0:00:08]}  Bd2+ {[%clk 0:00:46]} 59. Ka4 {[%clk 0:00:08]}  Nc7 {[%clk 0:00:45]} 60. Kb3 {[%clk 0:00:08]}  Bxa5 {[%clk 0:00:46]} 61. Ka4 {[%clk 0:00:09]}  Bd2 {[%clk 0:00:45]} 62. Kb3 {[%clk 0:00:09]}  b5 {[%clk 0:00:45]} 63. Ka3 {[%clk 0:00:10]}  Kc4 {[%clk 0:00:45]} 64. Kb2 {[%clk 0:00:11]}  b4 {[%clk 0:00:45]} 65. Kc2 {[%clk 0:00:11]}  Bc3 {[%clk 0:00:45]} 66. Kb1 {[%clk 0:00:12]}  b3 {[%clk 0:00:46]} 67. Kc1 {[%clk 0:00:12]}  a5 {[%clk 0:00:47]} 68. Kb1 {[%clk 0:00:13]}  a4 {[%clk 0:00:48]} 69. Kc1 {[%clk 0:00:14]}  a3 {[%clk 0:00:48]} 70. Kd1 {[%clk 0:00:15]}  a2 {[%clk 0:00:48]} 71. Ke2 {[%clk 0:00:16]}  a1=Q {[%clk 0:00:48]} 72. Kf3 {[%clk 0:00:17]}  Qe1 {[%clk 0:00:48]} 73. Kg4 {[%clk 0:00:17]}  b2 {[%clk 0:00:48]} 74. Kf5 {[%clk 0:00:18]}  b1=Q+ {[%clk 0:00:48]} 75. Kg5 {[%clk 0:00:17]}  Qbe4 {[%clk 0:00:47]} 76. Kh6 {[%clk 0:00:18]}  Q1h4# {[%clk 0:00:47]} 0-1


[Site "https://www.chess.com"]

[Event "Titled Tuesday Blitz May 24 Early 2022"]
[White "Onslow, Alfie"]
[Black "Eynullayev, Atilla"]
[WhiteFideId "436976"]
[BlackFideId "13413570"]
[WhiteElo "1885"]
[BlackElo "1936"]
[Result "0-1"]
[Round "01"]
[TimeControl "180+1"]
[Date "2022.05.25"]
[WhiteClock "0:00:02"]
[BlackClock "0:00:21"]

1. Nf3 {[%clk 0:02:59]}  Nf6 {[%clk 0:02:59]} 2. c4 {[%clk 0:02:58]}  e6 {[%clk 0:02:59]} 3. g3 {[%clk 0:02:58]}  d5 {[%clk 0:03:00]} 4. Bg2 {[%clk 0:02:58]}  Be7 {[%clk 0:03:00]} 5. O-O {[%clk 0:02:59]}  O-O {[%clk 0:03:00]} 6. b3 {[%clk 0:02:59]}  b6 {[%clk 0:03:00]} 7. Bb2 {[%clk 0:03:00]}  c5 {[%clk 0:03:00]} 8. cxd5 {[%clk 0:02:59]}  Nxd5 {[%clk 0:03:00]} 9. d4 {[%clk 0:02:57]}  Bb7 {[%clk 0:03:00]} 10. Nc3 {[%clk 0:02:52]}  Nd7 {[%clk 0:03:00]} 11. Rc1 {[%clk 0:02:44]}  Rc8 {[%clk 0:02:54]} 12. Nxd5 {[%clk 0:02:41]}  Bxd5 {[%clk 0:02:53]} 13. e3 {[%clk 0:02:41]}  Nf6 {[%clk 0:02:36]} 14. Qe2 {[%clk 0:02:39]}  Qd7 {[%clk 0:02:31]} 15. Ne5 {[%clk 0:02:34]}  Qb7 {[%clk 0:02:32]} 16. Bxd5 {[%clk 0:02:25]}  Qxd5 {[%clk 0:02:31]} 17. Rfd1 {[%clk 0:02:26]}  Qb7 {[%clk 0:02:24]} 18. dxc5 {[%clk 0:01:54]}  Bxc5 {[%clk 0:02:18]} 19. Ng4 {[%clk 0:01:53]}  Nxg4 {[%clk 0:02:06]} 20. Qxg4 {[%clk 0:01:54]}  f5 {[%clk 0:02:06]} 21. Qf4 {[%clk 0:01:50]}  Rfd8 {[%clk 0:01:55]} 22. h4 {[%clk 0:01:43]}  Qe7 {[%clk 0:01:48]} 23. Qe5 {[%clk 0:01:36]}  Rb8 {[%clk 0:01:29]} 24. h5 {[%clk 0:00:53]}  h6 {[%clk 0:01:27]} 25. Qc3 {[%clk 0:00:22]}  Bd6 {[%clk 0:01:18]} 26. Qc4 {[%clk 0:00:22]}  Kh7 {[%clk 0:01:14]} 27. Rc2 {[%clk 0:00:20]}  Bb4 {[%clk 0:00:48]} 28. Rdc1 {[%clk 0:00:19]}  Bc5 {[%clk 0:00:43]} 29. Qc3 {[%clk 0:00:15]}  Rd7 {[%clk 0:00:40]} 30. Qe5 {[%clk 0:00:11]}  Rbd8 {[%clk 0:00:35]} 31. a3 {[%clk 0:00:10]}  a5 {[%clk 0:00:34]} 32. b4 {[%clk 0:00:09]}  axb4 {[%clk 0:00:34]} 33. axb4 {[%clk 0:00:10]}  Bxb4 {[%clk 0:00:34]} 34. Rc6 {[%clk 0:00:11]}  Bd6 {[%clk 0:00:33]} 35. Qc3 {[%clk 0:00:10]}  Qg5 {[%clk 0:00:31]} 36. Rxb6 {[%clk 0:00:05]}  Bxg3 {[%clk 0:00:25]} 37. fxg3 {[%clk 0:00:06]}  Qxg3+ {[%clk 0:00:25]} 38. Kf1 {[%clk 0:00:04]}  Qf3+ {[%clk 0:00:22]} 39. Ke1 {[%clk 0:00:03]}  Qh1+ {[%clk 0:00:22]} 40. Kf2 {[%clk 0:00:03]}  Qh2+ {[%clk 0:00:21]} 41. Kf3 {[%clk 0:00:03]}  Qh3+ {[%clk 0:00:21]} 42. Kf2 {[%clk 0:00:03]}  Qh4+ {[%clk 0:00:20]} 43. Kf3 {[%clk 0:00:02]}  Qe4+ {[%clk 0:00:20]} 44. Kg3 {[%clk 0:00:02]}  f4+ {[%clk 0:00:19]} 45. exf4 {[%clk 0:00:02]}  Rd3+ {[%clk 0:00:19]} 46. Qxd3 {[%clk 0:00:01]}  Rxd3+ {[%clk 0:00:20]} 47. Kg4 {[%clk 0:00:02]}  Qf5+ {[%clk 0:00:20]} 48. Kh4 {[%clk 0:00:02]}  Rh3# {[%clk 0:00:21]} 0-1


[Site "https://www.chess.com"]

[Event "Titled Tuesday Blitz May 24 Early 2022"]
[White "Papasimakopoulos, Alexandros"]
[Black "Redzisz, Michal"]
[WhiteFideId "4244125"]
[BlackFideId "21816107"]
[WhiteElo "2340"]
[BlackElo "2004"]
[Result "1-0"]
[Round "01"]
[TimeControl "180+1"]
[Date "2022.05.25"]
[WhiteClock "0:00:20"]
[BlackClock "0:00:26"]

1. d4 {[%clk 0:03:00]}  Nf6 {[%clk 0:02:59]} 2. c4 {[%clk 0:03:00]}  c5 {[%clk 0:02:58]} 3. d5 {[%clk 0:03:00]}  e6 {[%clk 0:02:59]} 4. Nc3 {[%clk 0:03:00]}  exd5 {[%clk 0:02:59]} 5. cxd5 {[%clk 0:03:01]}  d6 {[%clk 0:03:00]} 6. Nf3 {[%clk 0:03:00]}  g6 {[%clk 0:03:00]} 7. Bf4 {[%clk 0:02:54]}  a6 {[%clk 0:02:56]} 8. a4 {[%clk 0:02:54]}  Bg7 {[%clk 0:02:56]} 9. h3 {[%clk 0:02:53]}  O-O {[%clk 0:02:54]} 10. e3 {[%clk 0:02:52]}  Nh5 {[%clk 0:02:45]} 11. Bh2 {[%clk 0:02:51]}  f5 {[%clk 0:02:46]} 12. Be2 {[%clk 0:02:28]}  Qe7 {[%clk 0:02:28]} 13. Nd2 {[%clk 0:02:27]}  Nf6 {[%clk 0:02:28]} 14. Nc4 {[%clk 0:02:23]}  Rd8 {[%clk 0:02:27]} 15. Nb6 {[%clk 0:02:21]}  Ra7 {[%clk 0:02:27]} 16. O-O {[%clk 0:02:10]}  Nbd7 {[%clk 0:02:27]} 17. Qb3 {[%clk 0:02:11]}  Ne5 {[%clk 0:02:04]} 18. Rfe1 {[%clk 0:02:05]}  Bd7 {[%clk 0:01:59]} 19. Red1 {[%clk 0:01:35]}  Be8 {[%clk 0:02:00]} 20. a5 {[%clk 0:01:27]}  Bf7 {[%clk 0:02:00]} 21. Rd2 {[%clk 0:01:25]}  Ne4 {[%clk 0:01:47]} 22. Rdd1 {[%clk 0:01:23]}  Nd7 {[%clk 0:01:44]} 23. Nca4 {[%clk 0:01:15]}  Nxb6 {[%clk 0:01:33]} 24. Nxb6 {[%clk 0:01:14]}  Qf6 {[%clk 0:01:30]} 25. Rab1 {[%clk 0:01:13]}  Qe7 {[%clk 0:01:21]} 26. Qc4 {[%clk 0:01:07]}  Nf6 {[%clk 0:01:11]} 27. b4 {[%clk 0:01:06]}  Ne4 {[%clk 0:01:11]} 28. Rbc1 {[%clk 0:00:53]}  g5 {[%clk 0:01:05]} 29. Bf3 {[%clk 0:00:47]}  cxb4 {[%clk 0:01:03]} 30. Nc8 {[%clk 0:00:38]}  Rxc8 {[%clk 0:00:59]} 31. Qxc8+ {[%clk 0:00:39]}  Bf8 {[%clk 0:00:58]} 32. Bxe4 {[%clk 0:00:31]}  fxe4 {[%clk 0:00:53]} 33. Rc7 {[%clk 0:00:23]}  Qe8 {[%clk 0:00:31]} 34. Qxe8 {[%clk 0:00:20]}  Bxe8 {[%clk 0:00:32]} 35. Rc8 {[%clk 0:00:21]}  Bf7 {[%clk 0:00:30]} 36. Bxd6 {[%clk 0:00:20]}  Ra8 {[%clk 0:00:27]} 37. Rxa8 {[%clk 0:00:20]}  h5 {[%clk 0:00:26]} 38. Rxf8+ {[%clk 0:00:20]} 1-0


[Site "https://www.chess.com"]

[Event "Titled Tuesday Blitz May 24 Early 2022"]
[White "Perez Gormaz, Matias"]
[Black "Polster, Christian"]
[WhiteFideId "3406342"]
[BlackFideId "12965081"]
[WhiteElo "2341"]
[BlackElo "2302"]
[Result "1-0"]
[Round "01"]
[TimeControl "180+1"]
[Date "2022.05.25"]
[WhiteClock "0:00:20"]
[BlackClock "0:00:12"]

1. e4 {[%clk 0:02:56]}  c5 {[%clk 0:02:50]} 2. Nf3 {[%clk 0:02:55]}  d6 {[%clk 0:02:13]} 3. Nc3 {[%clk 0:02:46]}  Nf6 {[%clk 0:02:06]} 4. e5 {[%clk 0:02:46]}  dxe5 {[%clk 0:02:05]} 5. Nxe5 {[%clk 0:02:46]}  Nbd7 {[%clk 0:02:03]} 6. d4 {[%clk 0:02:39]}  cxd4 {[%clk 0:01:52]} 7. Qxd4 {[%clk 0:02:38]}  e6 {[%clk 0:01:52]} 8. Bg5 {[%clk 0:02:23]}  Bc5 {[%clk 0:01:40]} 9. Qf4 {[%clk 0:02:19]}  Bd6 {[%clk 0:01:27]} 10. O-O-O {[%clk 0:02:06]}  Bxe5 {[%clk 0:01:26]} 11. Qe3 {[%clk 0:02:02]}  Qa5 {[%clk 0:01:17]} 12. Nb5 {[%clk 0:01:50]}  a6 {[%clk 0:00:51]} 13. Nd6+ {[%clk 0:01:22]}  Bxd6 {[%clk 0:00:45]} 14. Rxd6 {[%clk 0:01:23]}  O-O {[%clk 0:00:38]} 15. Bd3 {[%clk 0:01:17]}  Qe5 {[%clk 0:00:34]} 16. Rd4 {[%clk 0:01:04]}  Qxe3+ {[%clk 0:00:32]} 17. Bxe3 {[%clk 0:01:04]}  Ne5 {[%clk 0:00:31]} 18. Be2 {[%clk 0:01:03]}  Nd5 {[%clk 0:00:29]} 19. Bd2 {[%clk 0:01:01]}  b5 {[%clk 0:00:27]} 20. f4 {[%clk 0:01:00]}  Nc6 {[%clk 0:00:25]} 21. Rd3 {[%clk 0:01:00]}  Bb7 {[%clk 0:00:24]} 22. Rd1 {[%clk 0:00:53]}  Ndb4 {[%clk 0:00:21]} 23. Rd7 {[%clk 0:00:52]}  Rab8 {[%clk 0:00:18]} 24. Bf3 {[%clk 0:00:43]}  Nd5 {[%clk 0:00:15]} 25. f5 {[%clk 0:00:35]}  Rfd8 {[%clk 0:00:14]} 26. fxe6 {[%clk 0:00:35]}  fxe6 {[%clk 0:00:14]} 27. Bg4 {[%clk 0:00:20]}  Rxd7 {[%clk 0:00:12]} 28. Bxe6+ {[%clk 0:00:21]}  Kh8 {[%clk 0:00:07]} 29. Bxd7 {[%clk 0:00:21]}  Rd8 {[%clk 0:00:07]} 30. Bg4 {[%clk 0:00:20]}  Nf6 {[%clk 0:00:06]} 31. Bf3 {[%clk 0:00:20]}  Rd7 {[%clk 0:00:04]} 32. Re1 {[%clk 0:00:19]}  h5 {[%clk 0:00:04]} 33. Bg5 {[%clk 0:00:18]}  Na5 {[%clk 0:00:03]} 34. Bd1 {[%clk 0:00:16]}  Nc4 {[%clk 0:00:03]} 35. b3 {[%clk 0:00:15]}  Nd6 {[%clk 0:00:03]} 36. Bf4 {[%clk 0:00:12]}  Nde4 {[%clk 0:00:03]} 37. Be5 {[%clk 0:00:12]}  Re7 {[%clk 0:00:02]} 38. Bb2 {[%clk 0:00:11]}  Rc7 {[%clk 0:00:02]} 39. Bf3 {[%clk 0:00:11]}  Kg8 {[%clk 0:00:02]} 40. h3 {[%clk 0:00:10]}  h4 {[%clk 0:00:02]} 41. Be5 {[%clk 0:00:08]}  Rd7 {[%clk 0:00:01]} 42. Bb2 {[%clk 0:00:09]}  Rd5 {[%clk 0:00:02]} 43. a3 {[%clk 0:00:05]}  Rd7 {[%clk 0:00:02]} 44. Be5 {[%clk 0:00:02]}  Ng3 {[%clk 0:00:01]} 45. Bf4 {[%clk 0:00:01]}  Bxf3 {[%clk 0:00:01]} 46. gxf3 {[%clk 0:00:01]}  Ngh5 {[%clk 0:00:02]} 47. Bg5 {[%clk 0:00:02]}  Ng3 {[%clk 0:00:02]} 48. Bxh4 {[%clk 0:00:02]}  Nf5 {[%clk 0:00:03]} 49. Bf2 {[%clk 0:00:03]}  Nd4 {[%clk 0:00:04]} 50. Bxd4 {[%clk 0:00:03]}  Rxd4 {[%clk 0:00:05]} 51. Kb2 {[%clk 0:00:04]}  Rd7 {[%clk 0:00:05]} 52. Re3 {[%clk 0:00:04]}  Kf7 {[%clk 0:00:06]} 53. Rc3 {[%clk 0:00:04]}  Re7 {[%clk 0:00:07]} 54. Rc6 {[%clk 0:00:05]}  Re6 {[%clk 0:00:08]} 55. Rc7+ {[%clk 0:00:06]}  Kg6 {[%clk 0:00:08]} 56. Ra7 {[%clk 0:00:06]}  Kh6 {[%clk 0:00:08]} 57. c4 {[%clk 0:00:06]}  g5 {[%clk 0:00:09]} 58. c5 {[%clk 0:00:06]}  Nd5 {[%clk 0:00:09]} 59. b4 {[%clk 0:00:07]}  Nf4 {[%clk 0:00:08]} 60. Kc3 {[%clk 0:00:07]}  Ne2+ {[%clk 0:00:08]} 61. Kd3 {[%clk 0:00:07]}  Ng1 {[%clk 0:00:09]} 62. Kd4 {[%clk 0:00:08]}  Nxf3+ {[%clk 0:00:09]} 63. Kd5 {[%clk 0:00:09]}  Re5+ {[%clk 0:00:09]} 64. Kd6 {[%clk 0:00:09]}  Re1 {[%clk 0:00:10]} 65. Rxa6 {[%clk 0:00:10]}  Kh5 {[%clk 0:00:08]} 66. c6 {[%clk 0:00:10]}  Rd1+ {[%clk 0:00:08]} 67. Ke7 {[%clk 0:00:10]}  Ne5 {[%clk 0:00:08]} 68. c7 {[%clk 0:00:10]}  Rc1 {[%clk 0:00:08]} 69. Kd8 {[%clk 0:00:11]}  Nf7+ {[%clk 0:00:08]} 70. Kd7 {[%clk 0:00:10]}  Ne5+ {[%clk 0:00:08]} 71. Kd6 {[%clk 0:00:11]}  Nc4+ {[%clk 0:00:08]} 72. Ke7 {[%clk 0:00:10]}  Ne3 {[%clk 0:00:07]} 73. Kd8 {[%clk 0:00:10]}  Nd5 {[%clk 0:00:07]} 74. c8=Q {[%clk 0:00:10]}  Rxc8+ {[%clk 0:00:07]} 75. Kxc8 {[%clk 0:00:11]}  Kh4 {[%clk 0:00:08]} 76. Rd6 {[%clk 0:00:11]}  Nf4 {[%clk 0:00:07]} 77. Rb6 {[%clk 0:00:11]}  Kxh3 {[%clk 0:00:07]} 78. Rxb5 {[%clk 0:00:11]}  g4 {[%clk 0:00:08]} 79. Rg5 {[%clk 0:00:12]}  g3 {[%clk 0:00:08]} 80. b5 {[%clk 0:00:12]}  Ne6 {[%clk 0:00:08]} 81. Rg8 {[%clk 0:00:12]}  Nd4 {[%clk 0:00:07]} 82. a4 {[%clk 0:00:12]}  Nb3 {[%clk 0:00:07]} 83. Kc7 {[%clk 0:00:12]}  Nc5 {[%clk 0:00:08]} 84. a5 {[%clk 0:00:12]}  Ne6+ {[%clk 0:00:08]} 85. Kd6 {[%clk 0:00:12]}  Nf4 {[%clk 0:00:08]} 86. Rxg3+ {[%clk 0:00:11]}  Kxg3 {[%clk 0:00:07]} 87. a6 {[%clk 0:00:12]}  Nd3 {[%clk 0:00:07]} 88. a7 {[%clk 0:00:12]}  Nb4 {[%clk 0:00:08]} 89. a8=Q {[%clk 0:00:13]}  Nc6 {[%clk 0:00:09]} 90. Qxc6 {[%clk 0:00:13]}  Kf4 {[%clk 0:00:08]} 91. Qc5 {[%clk 0:00:14]}  Kg4 {[%clk 0:00:09]} 92. Qe5 {[%clk 0:00:15]}  Kf3 {[%clk 0:00:10]} 93. b6 {[%clk 0:00:16]}  Kf2 {[%clk 0:00:10]} 94. b7 {[%clk 0:00:17]}  Kf3 {[%clk 0:00:10]} 95. b8=Q {[%clk 0:00:18]}  Kg2 {[%clk 0:00:11]} 96. Qf8 {[%clk 0:00:18]}  Kg1 {[%clk 0:00:11]} 97. Qeg7+ {[%clk 0:00:19]}  Kh2 {[%clk 0:00:12]} 98. Qfh8# {[%clk 0:00:20]} 1-0


[Site "https://www.chess.com"]

[Event "Titled Tuesday Blitz May 24 Early 2022"]
[White "Perez Leiva, Jerzy Jesus"]
[Black "Vidit, Santosh Gujrathi"]
[WhiteFideId "3524337"]
[BlackFideId "5029465"]
[WhiteElo "2287"]
[BlackElo "2654"]
[Result "0-1"]
[Round "01"]
[TimeControl "180+1"]
[Date "2022.05.24"]
[WhiteClock "0:00:05"]
[BlackClock "0:00:26"]

1. e4 {[%clk 0:02:55]}  c5 {[%clk 0:02:59]} 2. Nf3 {[%clk 0:02:55]}  e6 {[%clk 0:02:58]} 3. d4 {[%clk 0:02:54]}  cxd4 {[%clk 0:02:59]} 4. Nxd4 {[%clk 0:02:55]}  a6 {[%clk 0:02:59]} 5. c4 {[%clk 0:02:54]}  Qc7 {[%clk 0:02:57]} 6. Nc3 {[%clk 0:02:53]}  Nf6 {[%clk 0:02:57]} 7. Be2 {[%clk 0:02:49]}  b6 {[%clk 0:02:56]} 8. O-O {[%clk 0:02:45]}  Bb7 {[%clk 0:02:56]} 9. Qd3 {[%clk 0:02:45]}  d6 {[%clk 0:02:51]} 10. f4 {[%clk 0:02:42]}  Nbd7 {[%clk 0:02:51]} 11. b4 {[%clk 0:02:43]}  Be7 {[%clk 0:02:37]} 12. Bb2 {[%clk 0:02:37]}  O-O {[%clk 0:02:31]} 13. Rac1 {[%clk 0:02:38]}  Rac8 {[%clk 0:02:30]} 14. Rfe1 {[%clk 0:01:31]}  Rfd8 {[%clk 0:02:27]} 15. Bf1 {[%clk 0:01:30]}  Bf8 {[%clk 0:02:17]} 16. Qh3 {[%clk 0:01:25]}  Re8 {[%clk 0:02:15]} 17. Bd3 {[%clk 0:01:17]}  g6 {[%clk 0:02:09]} 18. Nf3 {[%clk 0:01:11]}  Bg7 {[%clk 0:02:06]} 19. e5 {[%clk 0:01:05]}  Nh5 {[%clk 0:02:00]} 20. Ng5 {[%clk 0:00:56]}  dxe5 {[%clk 0:01:44]} 21. Nce4 {[%clk 0:00:45]}  exf4 {[%clk 0:01:33]} 22. Bxg7 {[%clk 0:00:41]}  Kxg7 {[%clk 0:01:34]} 23. Bb1 {[%clk 0:00:11]}  Ndf6 {[%clk 0:01:10]} 24. Qc3 {[%clk 0:00:07]}  e5 {[%clk 0:01:05]} 25. c5 {[%clk 0:00:07]}  bxc5 {[%clk 0:00:51]} 26. bxc5 {[%clk 0:00:07]}  Bxe4 {[%clk 0:00:47]} 27. Nxe4 {[%clk 0:00:06]}  Nxe4 {[%clk 0:00:47]} 28. Bxe4 {[%clk 0:00:07]}  Nf6 {[%clk 0:00:47]} 29. c6 {[%clk 0:00:07]}  Re6 {[%clk 0:00:31]} 30. Bf3 {[%clk 0:00:07]}  Kg8 {[%clk 0:00:31]} 31. h3 {[%clk 0:00:06]}  e4 {[%clk 0:00:30]} 32. Bd1 {[%clk 0:00:05]}  Qb6+ {[%clk 0:00:28]} 33. Kh2 {[%clk 0:00:05]}  Rexc6 {[%clk 0:00:27]} 34. Qd2 {[%clk 0:00:04]}  Rxc1 {[%clk 0:00:27]} 35. Qxc1 {[%clk 0:00:05]}  Rxc1 {[%clk 0:00:26]} 0-1


[Site "https://www.chess.com"]

[Event "Titled Tuesday Blitz May 24 Early 2022"]
[White "Petre, Nad-Titus"]
[Black "Chincholimath, Halsagar"]
[WhiteFideId "1204165"]
[BlackFideId "5022487"]
[WhiteElo "2354"]
[BlackElo "1737"]
[Result "1-0"]
[Round "01"]
[TimeControl "180+1"]
[Date "2022.05.25"]
[WhiteClock "0:00:38"]
[BlackClock "0:00:24"]

1. e4 {[%clk 0:03:00]}  c6 {[%clk 0:02:56]} 2. d4 {[%clk 0:03:00]}  d5 {[%clk 0:02:56]} 3. exd5 {[%clk 0:03:01]}  cxd5 {[%clk 0:02:55]} 4. Bd3 {[%clk 0:03:01]}  Qc7 {[%clk 0:02:50]} 5. Nc3 {[%clk 0:02:31]}  Nf6 {[%clk 0:02:46]} 6. Nb5 {[%clk 0:02:25]}  Qb6 {[%clk 0:02:37]} 7. Bf4 {[%clk 0:02:22]}  Na6 {[%clk 0:02:35]} 8. c3 {[%clk 0:02:17]}  Bd7 {[%clk 0:02:33]} 9. a4 {[%clk 0:02:16]}  e6 {[%clk 0:02:16]} 10. Nf3 {[%clk 0:02:15]}  Be7 {[%clk 0:01:16]} 11. Ne5 {[%clk 0:01:55]}  O-O {[%clk 0:01:09]} 12. Qe2 {[%clk 0:01:50]}  Rad8 {[%clk 0:00:48]} 13. g4 {[%clk 0:01:47]}  Bxb5 {[%clk 0:00:42]} 14. Bxb5 {[%clk 0:01:32]}  Nc7 {[%clk 0:00:39]} 15. Bd3 {[%clk 0:01:27]}  Ne4 {[%clk 0:00:36]} 16. a5 {[%clk 0:01:24]}  Qb3 {[%clk 0:00:31]} 17. f3 {[%clk 0:01:02]}  Nxc3 {[%clk 0:00:30]} 18. bxc3 {[%clk 0:00:59]}  Qxc3+ {[%clk 0:00:31]} 19. Kf2 {[%clk 0:00:55]}  Qxd4+ {[%clk 0:00:30]} 20. Qe3 {[%clk 0:00:49]}  Qb2+ {[%clk 0:00:30]} 21. Qd2 {[%clk 0:00:46]}  Qd4+ {[%clk 0:00:29]} 22. Kg2 {[%clk 0:00:39]}  Bd6 {[%clk 0:00:29]} 23. Bxh7+ {[%clk 0:00:38]}  Kxh7 {[%clk 0:00:25]} 24. Qxd4 {[%clk 0:00:38]}  Bxe5 {[%clk 0:00:25]} 25. Bxe5 {[%clk 0:00:37]}  Nb5 {[%clk 0:00:24]} 26. Qd3+ {[%clk 0:00:38]} 1-0


[Site "https://www.chess.com"]